[Event "FIDE WYCC Top Boards Girls 2023"]
[Site "Montesilvano"]
[Date "2023.11.23"]
[Round "10.9"]
[White "Wang, Chuqiao"]
[Black "Shohradova, Leyla"]
[Result "1-0"]
[ECO "D36"]
[WhiteElo "2215"]
[BlackElo "1782"]
[Annotator "RC"]
[PlyCount "121"]
[EventDate "2023.11.13"]
[EventType "swiss"]
[EventCountry "ITA"]
[SourceTitle "playchess.com"]
[Source "ChessBase"]
[SourceQuality "1"]
[TimeControl "40/5400+30:1800+30"]

1. d4 {[%emt 0:00:09]} d5 {[%emt 0:00:14]} 2. c4 {[%emt 0:00:05]} e6 {[%emt 0:00:05]} 3. Nc3 {[%emt 0:00:03]} Nf6 {[%emt 0:00:08]} 4. cxd5 {[%emt 0:00:11]} exd5 {[%emt 0:00:06]} 5. Bg5 {[%emt 0:00:04]} Be7 {[%emt 0:00:28]} 6. e3 {[%emt 0:00:08]} O-O {[%emt 0:00:19]} 7. Qc2 {[%emt 0:00:14]} h6 {[%emt 0:03:36]} 8. Bh4 {[%emt 0:00:55]} c6 {[%emt 0:01:38]} 9. Bd3 {[%emt 0:00:07]} Nbd7 {[%emt 0:03:34]} 10. Nf3 {[%emt 0:00:20]} b6 {[%emt 0:03:29]} 11. O-O {[%emt 0:00:59]} Bb7 {[%emt 0:00:05]} 12. Rfd1 {[%emt 0:01:11]} Re8 {[%emt 0:07:13]} 13. Bg3 {[%emt 0:02:44]} Nh5 {[%emt 0:06:59]} 14. Be5 {[%emt 0:01:07]} Nxe5 {[%emt 0:04:50]} 15. Nxe5 {[%emt 0:06:51]} Nf6 {[%emt 0:01:00]} 16. Qa4 {[%emt 0:07:57]} Bd6 {[%emt 0:13:27]} 17. Nf3 {[%emt 0:00:10]} c5 {[%emt 0:01:43]} 18. dxc5 {[%emt 0:10:13]} bxc5 {[%emt 0:00:16]} 19. Ba6 {[%emt 0:00:04]} Re7 {[%emt 0:06:53]} 20. Kf1 {[%emt 0:03:39]} Rb8 {[%emt 0:13:12]} 21. Bxb7 {[%emt 0:00:42]} Rexb7 {[%emt 0:00:29]} 22. b3 {[%emt 0:03:47]} Bf8 {[%emt 0:07:46]} 23. Rd2 {[%emt 0:03:08]} Rd7 {[%emt 0:02:59]} 24. Rad1 {[%emt 0:07:32]} Rb4 {[%emt 0:00:24]} 25. Qa6 {[%emt 0:00:10]} d4 {[%emt 0:04:34]} 26. Ne2 {[%emt 0:02:31]} Ne4 {[%emt 0:08:49]} 27. Rd3 {[%emt 0:00:07]} Qc7 {[%emt 0:02:53]} 28. exd4 {[%emt 0:06:35]} cxd4 {[%emt 0:01:02]} 29. Rxd4 {[%emt 0:01:45]} Rdxd4 {[%emt 0:01:57]} 30. Nexd4 {[%emt 0:00:20]} Rxd4 {[%emt 0:03:37]} 31. Rxd4 {[%emt 0:03:53]} Qc1+ {[%emt 0:00:37]} 32. Ne1 {[%emt 0:00:24]} Qf4 {[%emt 0:00:27]} 33. Nf3 {[%emt 0:09:12]} Qc1+ {[%emt 0:00:12]} 34. Ne1 {[%emt 0:00:34]} Qf4 {[%emt 0:00:05]} 35. Rxe4 {[%emt 0:00:16]} Qxe4 {[%emt 0:00:02]} 36. Qxa7 {[%emt 0:00:20]} Qe5 {[%emt 0:00:56]} 37. g3 {[%emt 0:00:46]} Qd5 {[%emt 0:01:43]} 38. h4 {[%emt 0:01:57]} Bc5 {[%emt 0:01:08]} 39. Qb8+ {[%emt 0:01:07]} Kh7 {[%emt 0:00:32]} 40. Qf4 {[%emt 0:00:00]} g6 {[%emt 0:00:00]} 41. Nf3 {[%emt 0:03:13]} Kg8 {[%emt 0:06:11]} 42. Kg2 {[%emt 0:00:25]} Bf8 {[%emt 0:01:19]} 43. Qe5 {[%emt 0:00:12]} Qd3 {[%emt 0:00:18]} 44. Qd4 {[%emt 0:00:53]} Qc2 {[%emt 0:00:48]} 45. Qd2 {[%emt 0:00:03]} Qb1 {[%emt 0:00:27]} 46. Ne1 {[%emt 0:00:53]} Qe4+ {[%emt 0:00:43]} 47. Nf3 {[%emt 0:00:19]} Qb1 {[%emt 0:00:05]} 48. Qe2 {[%emt 0:00:01]} Bg7 {[%emt 0:01:49]} 49. Qe8+ {[%emt 0:00:22]} Bf8 {[%emt 0:00:07]} 50. Qa8 {[%emt 0:00:07]} Kg7 {[%emt 0:00:40]} 51. Qa4 {[%emt 0:00:11]} Qc2 {[%emt 0:00:33]} 52. Ne5 {[%emt 0:03:15]} Qc7 {[%emt 0:03:26]} 53. Qe4 {[%emt 0:00:24]} Qa7 {[%emt 0:04:50]} 54. a4 {[%emt 0:00:45]} Bc5 {[%emt 0:00:45]} 55. Nd3 {[%emt 0:00:07]} Bd4 {[%emt 0:00:17]} 56. b4 {[%emt 0:00:12]} Bc3 {[%emt 0:01:18]} 57. a5 {[%emt 0:00:59]} Qa6 {[%emt 0:00:50]} 58. Qd5 {[%emt 0:00:20]} Bf6 {[%emt 0:00:40]} 59. Ne5 {[%emt 0:00:46]} Qa7 {[%emt 0:01:55]} 60. b5 {[%emt 0:00:26]} Qc7 {[%emt 0:00:03]} 61. b6 {[%emt 0:00:20]} 1-0

[Event "FIDE WYCC Top Boards Girls 2023"]
[Site "Montesilvano"]
[Date "2023.11.23"]
[Round "10.10"]
[White "Bondar, Daria"]
[Black "Shvedova, Alexandra"]
[Result "0-1"]
[ECO "C78"]
[WhiteElo "1908"]
[BlackElo "2170"]
[Annotator "RC"]
[PlyCount "90"]
[EventDate "2023.11.13"]
[EventType "swiss"]
[EventCountry "ITA"]
[SourceTitle "playchess.com"]
[Source "ChessBase"]
[SourceQuality "1"]
[TimeControl "40/5400+30:1800+30"]

1. e4 {[%emt 0:00:03]} e5 {[%emt 0:00:06]} 2. Nf3 {[%emt 0:00:11]} Nc6 {[%emt 0:00:07]} 3. Bb5 {[%emt 0:00:14]} a6 {[%emt 0:00:07]} 4. Ba4 {[%emt 0:00:12]} Nf6 {[%emt 0:00:06]} 5. O-O {[%emt 0:00:21]} b5 {[%emt 0:00:15]} 6. Bb3 {[%emt 0:00:06]} Bc5 {[%emt 0:00:06]} 7. d3 {[%emt 0:02:16]} d6 {[%emt 0:00:27]} 8. c3 {[%emt 0:00:40]} h6 {[%emt 0:01:58]} 9. Re1 {[%emt 0:08:45]} Bb6 {[%emt 0:02:32]} 10. Nbd2 {[%emt 0:04:23]} O-O {[%emt 0:00:45]} 11. h3 {[%emt 0:00:51]} Ne7 {[%emt 0:02:58]} 12. Nf1 {[%emt 0:01:11]} Ng6 {[%emt 0:00:56]} 13. Ng3 {[%emt 0:02:08]} c6 {[%emt 0:05:05]} 14. Be3 {[%emt 0:04:47]} Re8 {[%emt 0:10:12]} 15. Bxb6 {[%emt 0:08:07]} Qxb6 {[%emt 0:00:08]} 16. d4 {[%emt 0:00:27]} c5 {[%emt 0:04:44]} 17. Qd2 {[%emt 0:07:36]} Bb7 {[%emt 0:18:08]} 18. Bc2 {[%emt 0:03:12]} Rad8 {[%emt 0:03:13]} 19. d5 {[%emt 0:05:20]} c4 {[%emt 0:03:41]} 20. Nf5 {[%emt 0:01:38]} Bc8 {[%emt 0:03:44]} 21. N3h4 {[%emt 0:04:16]} Nxh4 {[%emt 0:04:42]} 22. Nxh4 {[%emt 0:00:09]} Nh5 {[%emt 0:00:22]} 23. Kh2 {[%emt 0:05:24]} Qa7 {[%emt 0:05:15]} 24. g3 {[%emt 0:11:26]} g6 {[%emt 0:07:16]} 25. Bd1 {[%emt 0:01:58]} Nf6 {[%emt 0:01:30]} 26. Bf3 {[%emt 0:12:02]} g5 {[%emt 0:03:02]} 27. Ng2 {[%emt 0:02:43]} Qd7 {[%emt 0:01:32]} 28. g4 {[%emt 0:00:05]} Kg7 {[%emt 0:01:04]} 29. Ne3 {[%emt 0:01:10]} Qe7 {[%emt 0:03:38]} 30. b3 {[%emt 0:01:33]} cxb3 {[%emt 0:03:08]} 31. axb3 {[%emt 0:00:04]} Qa7 {[%emt 0:01:57]} 32. Ra5 {[%emt 0:02:16]} Rh8 {[%emt 0:00:41]} 33. Rea1 {[%emt 0:01:16]} Qb6 {[%emt 0:06:55]} 34. Nf5+ {[%emt 0:01:24]} Kf8 {[%emt 0:00:04]} 35. Kg2 {[%emt 0:02:32]} Ne8 {[%emt 0:02:39]} 36. h4 {[%emt 0:01:46]} f6 {[%emt 0:01:15]} 37. h5 {[%emt 0:02:40]} Nc7 {[%emt 0:00:50]} 38. Ne3 {[%emt 0:00:09]} Bd7 {[%emt 0:00:50]} 39. Be2 {[%emt 0:00:30]} Kf7 {[%emt 0:01:04]} 40. Nc2 {[%emt 0:00:00]} Ra8 {[%emt 0:00:00]} 41. Kf3 {[%emt 0:08:06]} Bxg4+ {[%emt 0:14:43]} 42. Kxg4 {[%emt 0:11:18]} Qxf2 {[%emt 0:00:07]} 43. Ne3 {[%emt 0:01:05]} Ne8 {[%emt 0:08:41]} 44. Nf5 {[%emt 0:10:40]} Qg2+ {[%emt 0:01:14]} 45. Ng3 {[%emt 0:00:05]} f5+ {[%emt 0:00:13]} 0-1

[Event "FIDE WYCC Top Boards Girls 2023"]
[Site "Montesilvano"]
[Date "2023.11.23"]
[Round "10.11"]
[White "Shukhman, Anna"]
[Black "Khamdamova, Afruza"]
[Result "0-1"]
[ECO "C92"]
[WhiteElo "2263"]
[BlackElo "2199"]
[Annotator "RC"]
[PlyCount "160"]
[EventDate "2023.11.13"]
[EventType "swiss"]
[EventCountry "ITA"]
[SourceTitle "playchess.com"]
[Source "ChessBase"]
[SourceQuality "1"]
[TimeControl "40/5400+30:1800+30"]

1. e4 {[%emt 0:00:03]} e5 {[%emt 0:03:23]} 2. Nf3 {[%emt 0:00:05]} Nc6 {[%emt 0:00:55]} 3. Bb5 {[%emt 0:00:04]} a6 {[%emt 0:00:04]} 4. Ba4 {[%emt 0:00:01]} Nf6 {[%emt 0:00:05]} 5. O-O {[%emt 0:00:05]} Be7 {[%emt 0:00:02]} 6. Re1 {[%emt 0:00:03]} b5 {[%emt 0:00:03]} 7. Bb3 {[%emt 0:00:02]} d6 {[%emt 0:00:04]} 8. c3 {[%emt 0:00:03]} O-O {[%emt 0:00:04]} 9. h3 {[%emt 0:00:03]} Bb7 {[%emt 0:00:03]} 10. d4 {[%emt 0:00:40]} Re8 {[%emt 0:00:04]} 11. Bc2 {[%emt 0:05:32]} Bf8 {[%emt 0:10:04]} 12. d5 {[%emt 0:01:52]} Nb8 {[%emt 0:01:36]} 13. Bd3 {[%emt 0:16:21]} c6 {[%emt 0:01:49]} 14. c4 {[%emt 0:00:02]} bxc4 {[%emt 0:06:30]} 15. Bxc4 {[%emt 0:00:14]} cxd5 {[%emt 0:00:30]} 16. exd5 {[%emt 0:00:11]} Nbd7 {[%emt 0:00:24]} 17. Nc3 {[%emt 0:01:18]} Qc7 {[%emt 0:14:43]} 18. Bb3 {[%emt 0:01:20]} Nc5 {[%emt 0:05:16]} 19. Bc2 {[%emt 0:01:35]} g6 {[%emt 0:06:44]} 20. Bg5 {[%emt 0:04:07]} Bg7 {[%emt 0:00:45]} 21. Rc1 {[%emt 0:00:13]} Qb6 {[%emt 0:02:44]} 22. Be3 {[%emt 0:04:26]} Rac8 {[%emt 0:17:17]} 23. Na4 {[%emt 0:24:48]} Qd8 {[%emt 0:00:08]} 24. Nxc5 {[%emt 0:00:12]} dxc5 {[%emt 0:00:03]} 25. Ba4 {[%emt 0:00:45]} Nd7 {[%emt 0:04:17]} 26. Nd2 {[%emt 0:01:03]} Rf8 {[%emt 0:15:14]} 27. Ne4 {[%emt 0:06:28]} Ba8 {[%emt 0:00:47]} 28. Nxc5 {[%emt 0:12:45]} Nb6 {[%emt 0:00:10]} 29. d6 {[%emt 0:00:03]} Nxa4 {[%emt 0:00:54]} 30. Nxa4 {[%emt 0:04:02]} Rxc1 {[%emt 0:00:20]} 31. Bxc1 {[%emt 0:00:04]} Qb8 {[%emt 0:04:40]} 32. Be3 {[%emt 0:04:03]} Rd8 {[%emt 0:00:34]} 33. Bc5 {[%emt 0:00:17]} Bc6 {[%emt 0:02:05]} 34. Nb6 {[%emt 0:02:47]} Bf8 {[%emt 0:00:29]} 35. Nc4 {[%emt 0:01:43]} Qb5 {[%emt 0:01:00]} 36. Bb6 {[%emt 0:00:05]} Rd7 {[%emt 0:00:10]} 37. b3 {[%emt 0:00:49]} Bxd6 {[%emt 0:00:48]} 38. a4 {[%emt 0:03:20]} Qd5 {[%emt 0:01:27]} 39. Qxd5 {[%emt 0:00:45]} Bxd5 {[%emt 0:00:02]} 40. Rd1 {[%emt 0:00:00]} Bb8 {[%emt 0:00:00]} 41. Ba5 {[%emt 0:20:25]} Be6 {[%emt 0:02:16]} 42. Rxd7 {[%emt 0:01:22]} Bxd7 {[%emt 0:00:01]} 43. Bc3 {[%emt 0:00:07]} f6 {[%emt 0:00:50]} 44. f4 {[%emt 0:00:23]} exf4 {[%emt 0:03:17]} 45. Bxf6 {[%emt 0:00:03]} Ba7+ {[%emt 0:05:21]} 46. Kf1 {[%emt 0:05:06]} Bf5 {[%emt 0:01:10]} 47. Ke2 {[%emt 0:00:55]} Bc2 {[%emt 0:00:09]} 48. Nd2 {[%emt 0:00:12]} h6 {[%emt 0:00:48]} 49. Be5 {[%emt 0:05:19]} g5 {[%emt 0:00:04]} 50. h4 {[%emt 0:00:03]} Kf7 {[%emt 0:01:11]} 51. hxg5 {[%emt 0:01:48]} hxg5 {[%emt 0:00:01]} 52. Nf3 {[%emt 0:01:05]} Kg6 {[%emt 0:01:02]} 53. Nd4 {[%emt 0:00:59]} Be4 {[%emt 0:00:06]} 54. Kf1 {[%emt 0:00:13]} Bc5 {[%emt 0:00:52]} 55. a5 {[%emt 0:02:28]} Bd5 {[%emt 0:00:26]} 56. Kf2 {[%emt 0:03:06]} Bxb3 {[%emt 0:00:28]} 57. g3 {[%emt 0:00:03]} Bd5 {[%emt 0:00:57]} 58. gxf4 {[%emt 0:00:21]} gxf4 {[%emt 0:00:02]} 59. Bxf4 {[%emt 0:02:29]} Bxd4+ {[%emt 0:00:04]} 60. Ke2 {[%emt 0:00:30]} Bc4+ {[%emt 0:00:09]} 61. Kd2 {[%emt 0:00:14]} Kf5 {[%emt 0:00:42]} 62. Bc7 {[%emt 0:00:06]} Ke4 {[%emt 0:00:10]} 63. Kc2 {[%emt 0:00:34]} Ba2 {[%emt 0:03:06]} 64. Bb6 {[%emt 0:00:24]} Be5 {[%emt 0:00:06]} 65. Bd8 {[%emt 0:00:03]} Kd5 {[%emt 0:00:06]} 66. Bb6 {[%emt 0:00:36]} Kc4 {[%emt 0:00:08]} 67. Bd8 {[%emt 0:00:54]} Kb4 {[%emt 0:00:27]} 68. Bb6 {[%emt 0:00:25]} Be6 {[%emt 0:00:09]} 69. Bd8 {[%emt 0:00:46]} Bf5+ {[%emt 0:00:41]} 70. Kc1 {[%emt 0:00:20]} Kb3 {[%emt 0:00:17]} 71. Bb6 {[%emt 0:00:18]} Kc3 {[%emt 0:00:33]} 72. Kd1 {[%emt 0:00:08]} Bg4+ {[%emt 0:01:26]} 73. Ke1 {[%emt 0:00:03]} Bg3+ {[%emt 0:00:33]} 74. Bf2 {[%emt 0:01:03]} Bc7 {[%emt 0:00:41]} 75. Kf1 {[%emt 0:00:03]} Kb4 {[%emt 0:01:01]} 76. Be1+ {[%emt 0:00:04]} Kb5 {[%emt 0:00:02]} 77. Bh4 {[%emt 0:00:59]} Bxa5 {[%emt 0:00:11]} 78. Kf2 {[%emt 0:00:04]} Bd2 {[%emt 0:00:05]} 79. Bf6 {[%emt 0:00:30]} a5 {[%emt 0:00:09]} 80. Kg3 {[%emt 0:00:10]} Bd1 {[%emt 0:00:03]} 0-1

[Event "FIDE WYCC Top Boards Girls 2023"]
[Site "Montesilvano"]
[Date "2023.11.23"]
[Round "10.12"]
[White "Kaliakhmet, Elnaz"]
[Black "Kirtadze, Anastasia"]
[Result "1-0"]
[ECO "E11"]
[WhiteElo "1933"]
[BlackElo "1921"]
[Annotator "NA RC"]
[PlyCount "141"]
[EventDate "2023.11.13"]
[EventType "swiss"]
[EventCountry "ITA"]
[SourceTitle "playchess.com"]
[Source "ChessBase"]
[SourceQuality "1"]
[TimeControl "40/5400+30:1800+30"]

1. d4 {[%emt 0:00:16]} Nf6 {[%emt 0:00:03]} 2. c4 {[%emt 0:00:17]} e6 {[%emt 0:00:05]} 3. Nf3 {[%emt 0:00:11]} Bb4+ {[%emt 0:00:25]} 4. Bd2 {[%emt 0:00:30]} a5 {[%emt 0:00:22]} 5. g3 {[%emt 0:00:18]} O-O {[%emt 0:03:23]} 6. Bg2 {[%emt 0:00:16]} d5 {[%emt 0:01:00]} 7. O-O {[%emt 0:03:25]} Be7 {[%emt 0:01:50]} 8. Nc3 {[%emt 0:10:36]} Nbd7 {[%emt 0:10:50]} 9. Bf4 {[%emt 0:02:48]} c6 {[%emt 0:01:18]} 10. Ne5 {[%emt 0:28:04]} Nxe5 {[%emt 0:12:45]} 11. dxe5 {[%emt 0:02:50]} Nh5 {[%emt 0:01:34]} 12. Bd2 {[%emt 0:04:47]} g6 {[%emt 0:01:45]} 13. Bh6 {[%emt 0:01:46]} Ng7 {[%emt 0:00:21]} 14. Qc1 {[%emt 0:06:27]} f6 {[%emt 0:07:30]} 15. exf6 {[%emt 0:01:28]} Bxf6 {[%emt 0:00:24]} 16. cxd5 {[%emt 0:00:56]} cxd5 {[%emt 0:04:13]} 17. Qd2 {[%emt 0:02:08]} Bd7 {[%emt 0:08:40]} 18. Rad1 {[%emt 0:04:12]} Bc6 {[%emt 0:01:50]} 19. h4 {[%emt 0:07:48]} Rf7 {[%emt 0:03:41]} 20. Bg5 {[%emt 0:02:30]} b5 {[%emt 0:09:32]} 21. e4 {[%emt 0:01:16]} b4 {[%emt 0:05:08]} 22. Ne2 {[%emt 0:00:11]} Bxg5 {[%emt 0:00:46]} 23. hxg5 {[%emt 0:00:04]} Rd7 {[%emt 0:00:48]} 24. exd5 {[%emt 0:12:48]} Bxd5 {[%emt 0:00:10]} 25. Nf4 {[%emt 0:00:42]} Ra6 {[%emt 0:14:11]} 26. Nxd5 {[%emt 0:01:34]} exd5 {[%emt 0:00:07]} 27. Bxd5+ {[%emt 0:04:03]} Kh8 {[%emt 0:00:11]} 28. Qc1 {[%emt 0:00:43]} Rad6 {[%emt 0:06:23]} 29. Bb3 {[%emt 0:00:04]} Rxd1 {[%emt 0:03:47]} 30. Rxd1 {[%emt 0:01:25]} Rxd1+ {[%emt 0:00:07]} 31. Qxd1 {[%emt 0:00:10]} Qxg5 {[%emt 0:01:17]} 32. Qd6 {[%emt 0:00:13]} Qc1+ {[%emt 0:00:28]} 33. Kg2 {[%emt 0:00:49]} Qc8 {[%emt 0:00:05]} 34. Qd5 {[%emt 0:00:02]} h5 {[%emt 0:01:51]} 35. Qxa5 {[%emt 0:00:25]} Nf5 {[%emt 0:00:37]} 36. Qxb4 {[%emt 0:01:50]} Qa8+ {[%emt 0:00:25]} 37. Kh2 {[%emt 0:00:23]} Kh7 {[%emt 0:00:23]} 38. Qc5 {[%emt 0:00:41]} h4 {[%emt 0:00:32]} 39. Qc7+ {[%emt 0:00:28]} Kh8 {[%emt 0:00:14]} 40. Qe5+ {[%emt 0:00:00]} Kh7 {[%emt 0:00:00]} 41. Qc7+ {[%emt 0:05:40]} Ng7 {[%emt 0:06:30]} 42. gxh4 {[%emt 0:02:38]} Qe4 {[%emt 0:01:55]} 43. Qc4 {[%emt 0:02:49]} Qe5+ {[%emt 0:00:44]} 44. Kh3 {[%emt 0:02:05]} Kh6 {[%emt 0:02:34]} 45. Qc3 {[%emt 0:02:55]} Qf5+ {[%emt 0:00:41]} 46. Kg2 {[%emt 0:00:02]} Qe4+ {[%emt 0:00:50]} 47. Qf3 {[%emt 0:00:07]} Qb1 {[%emt 0:00:58]} 48. Qf6 {[%emt 0:00:51]} Qe4+ {[%emt 0:00:17]} 49. Kh2 {[%emt 0:00:03]} Kh7 {[%emt 0:01:46]} 50. Bf7 {[%emt 0:06:04]} Nh5 {[%emt 0:01:08]} 51. Bxg6+ {[%emt 0:00:27]} Qxg6 {[%emt 0:00:05]} 52. Qxg6+ {[%emt 0:00:02]} Kxg6 {[%emt 0:00:06]} 53. a4 {[%emt 0:00:10]} Nf6 {[%emt 0:00:27]} 54. b4 {[%emt 0:00:15]} Kf5 {[%emt 0:01:09]} 55. Kg3 {[%emt 0:02:38]} Ke5 {[%emt 0:00:31]} 56. a5 {[%emt 0:01:18]} Ne4+ {[%emt 0:00:23]} 57. Kf3 {[%emt 0:00:04]} Nd6 {[%emt 0:00:14]} 58. Kg4 {[%emt 0:00:18]} Kf6 {[%emt 0:00:07]} 59. Kf4 {[%emt 0:00:13]} Ke6 {[%emt 0:00:28]} 60. h5 {[%emt 0:00:30]} Kf6 {[%emt 0:00:05]} 61. f3 {[%emt 0:00:43]} Ke6 {[%emt 0:00:13]} 62. h6 {[%emt 0:00:19]} Kf6 {[%emt 0:00:06]} 63. h7 {[%emt 0:00:03]} Kg7 {[%emt 0:00:04]} 64. Ke5 {[%emt 0:00:15]} Nb5 {[%emt 0:00:09]} 65. Kd5 {[%emt 0:00:14]} Kxh7 {[%emt 0:00:16]} 66. Kc5 {[%emt 0:00:05]} Nc7 {[%emt 0:00:11]} 67. b5 {[%emt 0:00:04]} Ne6+ {[%emt 0:00:03]} 68. Kd5 {[%emt 0:00:11]} Nc7+ {[%emt 0:00:06]} 69. Kc6 {[%emt 0:00:03]} Ne6 {[%emt 0:00:04]} 70. a6 {[%emt 0:00:09]} Nd4+ {[%emt 0:00:04]} 71. Kb6 {[%emt 0:00:08]} 1-0

[Event "FIDE WYCC Top Boards Girls 2023"]
[Site "Montesilvano"]
[Date "2023.11.24"]
[Round "11.7"]
[White "Allahverdiyeva, Ayan"]
[Black "Luong, Hoang Tu Linh"]
[Result "1-0"]
[ECO "B42"]
[WhiteElo "2152"]
[BlackElo "1887"]
[Annotator "RC"]
[PlyCount "55"]
[EventDate "2023.11.13"]
[EventType "swiss"]
[EventCountry "ITA"]
[SourceTitle "playchess.com"]
[Source "ChessBase"]
[SourceQuality "1"]
[TimeControl "40/5400+30:1800+30"]

1. e4 {[%emt 0:00:01]} c5 {[%emt 0:00:11]} 2. Nf3 {[%emt 0:00:06]} e6 {[%emt 0:00:26]} 3. d4 {[%emt 0:00:18]} cxd4 {[%emt 0:00:08]} 4. Nxd4 {[%emt 0:00:05]} a6 {[%emt 0:00:27]} 5. Bd3 {[%emt 0:01:47]} Nc6 {[%emt 0:01:34]} 6. Nxc6 {[%emt 0:00:11]} bxc6 {[%emt 0:00:10]} 7. O-O {[%emt 0:01:53]} d5 {[%emt 0:01:58]} 8. Re1 {[%emt 0:03:20]} Ne7 {[%emt 0:19:11]} 9. Nc3 {[%emt 0:05:30]} Bb7 {[%emt 0:03:07]} 10. f4 {[%emt 0:13:23]} d4 {[%emt 0:14:18]} 11. Nb1 {[%emt 0:04:44]} c5 {[%emt 0:02:38]} 12. Qh5 {[%emt 0:12:29]} Qc7 {[%emt 0:13:26]} 13. Na3 {[%emt 0:06:48]} Nc6 {[%emt 0:05:33]} 14. Nc4 {[%emt 0:04:46]} Na5 {[%emt 0:04:21]} 15. Bd2 {[%emt 0:09:03]} Nxc4 {[%emt 0:00:23]} 16. Bxc4 {[%emt 0:00:03]} Bc6 {[%emt 0:09:53]} 17. a4 {[%emt 0:05:43]} g6 {[%emt 0:04:57]} 18. Qh3 {[%emt 0:01:10]} Bg7 {[%emt 0:07:40]} 19. f5 {[%emt 0:01:54]} e5 {[%emt 0:02:26]} 20. Rf1 {[%emt 0:07:47]} Bxe4 {[%emt 0:04:45]} 21. Qg4 {[%emt 0:02:52]} Bb7 {[%emt 0:02:54]} 22. fxg6 {[%emt 0:00:16]} f6 {[%emt 0:00:22]} 23. gxh7 {[%emt 0:00:59]} Qe7 {[%emt 0:00:36]} 24. Be6 {[%emt 0:02:49]} e4 {[%emt 0:00:32]} 25. Qg6+ {[%emt 0:00:21]} Kf8 {[%emt 0:00:11]} 26. Bh6 {[%emt 0:00:06]} Rxh7 {[%emt 0:00:49]} 27. Rxf6+ {[%emt 0:00:09]} Qxf6 {[%emt 0:00:12]} 28. Qxf6+ {[%emt 0:00:01]} 1-0

[Event "FIDE WYCC Top Boards Girls 2023"]
[Site "Montesilvano"]
[Date "2023.11.24"]
[Round "11.8"]
[White "Zhurova, Anna"]
[Black "Hrebenshchykova, Yelyzaveta"]
[Result "0-1"]
[ECO "C91"]
[WhiteElo "2149"]
[BlackElo "2292"]
[Annotator "RC"]
[PlyCount "90"]
[EventDate "2023.11.13"]
[EventType "swiss"]
[EventCountry "ITA"]
[SourceTitle "playchess.com"]
[Source "ChessBase"]
[SourceQuality "1"]
[TimeControl "40/5400+30:1800+30"]

1. e4 {[%emt 0:00:37]} e5 {[%emt 0:00:31]} 2. Nf3 {[%emt 0:03:31]} Nc6 {[%emt 0:00:04]} 3. Bb5 {[%emt 0:00:09]} a6 {[%emt 0:00:09]} 4. Ba4 {[%emt 0:00:07]} Nf6 {[%emt 0:00:04]} 5. O-O {[%emt 0:01:08]} Be7 {[%emt 0:00:51]} 6. Re1 {[%emt 0:00:36]} b5 {[%emt 0:00:57]} 7. Bb3 {[%emt 0:00:06]} d6 {[%emt 0:00:09]} 8. c3 {[%emt 0:04:05]} O-O {[%emt 0:00:49]} 9. d4 {[%emt 0:01:56]} Bg4 {[%emt 0:04:18]} 10. Be3 {[%emt 0:06:22]} exd4 {[%emt 0:04:02]} 11. cxd4 {[%emt 0:00:38]} Na5 {[%emt 0:00:05]} 12. Bc2 {[%emt 0:01:10]} Nc4 {[%emt 0:00:17]} 13. Bc1 {[%emt 0:02:12]} c5 {[%emt 0:03:00]} 14. b3 {[%emt 0:01:39]} Nb6 {[%emt 0:07:23]} 15. Nbd2 {[%emt 0:04:09]} Rc8 {[%emt 0:26:56]} 16. h3 {[%emt 0:02:26]} Bh5 {[%emt 0:01:15]} 17. Bb2 {[%emt 0:07:57]} cxd4 {[%emt 0:04:03]} 18. g4 {[%emt 0:03:07]} Bg6 {[%emt 0:04:28]} 19. Nxd4 {[%emt 0:03:15]} d5 {[%emt 0:04:12]} 20. e5 {[%emt 0:04:43]} Bxc2 {[%emt 0:00:13]} 21. Nxc2 {[%emt 0:00:06]} Nfd7 {[%emt 0:02:49]} 22. Nf3 {[%emt 0:05:07]} Nc5 {[%emt 0:02:57]} 23. Ncd4 {[%emt 0:05:07]} Re8 {[%emt 0:09:36]} 24. Rc1 {[%emt 0:04:29]} Qd7 {[%emt 0:01:53]} 25. Nf5 {[%emt 0:01:53]} Bf8 {[%emt 0:00:05]} 26. Bd4 {[%emt 0:04:04]} Re6 {[%emt 0:06:45]} 27. Re2 {[%emt 0:07:42]} g6 {[%emt 0:08:09]} 28. Ng3 {[%emt 0:10:12]} b4 {[%emt 0:00:20]} 29. Rec2 {[%emt 0:00:40]} Rec6 {[%emt 0:00:23]} 30. Be3 {[%emt 0:02:25]} Qb7 {[%emt 0:01:22]} 31. Nd4 {[%emt 0:05:56]} R6c7 {[%emt 0:00:05]} 32. Ngf5 {[%emt 0:01:04]} gxf5 {[%emt 0:05:00]} 33. gxf5 {[%emt 0:00:07]} Ne4 {[%emt 0:00:01]} 34. f3 {[%emt 0:01:38]} Rxc2 {[%emt 0:01:44]} 35. Rxc2 {[%emt 0:00:04]} Rxc2 {[%emt 0:01:07]} 36. Qxc2 {[%emt 0:00:09]} Nc3 {[%emt 0:00:10]} 37. Qg2+ {[%emt 0:00:41]} Kh8 {[%emt 0:00:08]} 38. Bg5 {[%emt 0:00:06]} h6 {[%emt 0:00:00]} 39. Bf6+ {[%emt 0:00:25]} Kh7 {[%emt 0:00:04]} 40. e6 {[%emt 0:00:00]} Nc8 {[%emt 0:00:00]} 41. Qc2 {[%emt 0:00:52]} Qc7 {[%emt 0:07:27]} 42. e7 {[%emt 0:07:55]} Qg3+ {[%emt 0:01:15]} 43. Kf1 {[%emt 0:00:15]} Qxh3+ {[%emt 0:00:37]} 44. Kg1 {[%emt 0:00:34]} Bxe7 {[%emt 0:02:38]} 45. Be5 {[%emt 0:00:06]} f6 {[%emt 0:02:11]} 0-1